fUSD/lending_fUSD_20240818
["ID","MTS","AMOUNT","RATE_DAILY","PERIOD"]
[335187282,1723954238478,-500.0,0.00010398,2]
[335187283,1723954238487,-187.72784141,0.00010398,2]
[335187284,1723954238496,-356.76,0.000104,2]
[335187285,1723954238505,-300.0,0.000104,2]
[335187286,1723954238514,-300.69,0.000104,2]
[335187288,1723954238695,-150.0,0.000104,2]
[335187290,1723954238704,-300.0,0.000104,2]
[335187291,1723954238714,-150.0,0.000104,2]
[335187293,1723954238725,-531.19,0.000104,2]
[335187295,1723954238735,-187.72784141,0.00010409,2]
[335187297,1723954238745,-150.0,0.0001041,2]
[335187299,1723954238754,-150.0,0.00010414,2]
[335187301,1723954238764,-187.72784141,0.0001042,2]
[335187303,1723954238773,-187.72784141,0.00010431,2]
[335187305,1723954238782,-1000.0,0.00010436,2]
[335187307,1723954238791,-150.0,0.00010437,2]
[335187309,1723954238800,-150.0,0.00010437,2]
[335187311,1723954238809,-600.0,0.00010438,2]
[335187312,1723954238818,-700.0,0.00010438,2]
[335187314,1723954238826,-449.75,0.00010439,2]
[335187316,1723954238835,-187.72784141,0.00010443,2]
[335187318,1723954238844,-187.72784141,0.00010454,2]
[335187320,1723954238853,-150.0,0.0001046,2]
[335187321,1723954238862,-150.0,0.00010464,2]
[335187322,1723954238871,-187.72784141,0.00010465,2]
[335187323,1723954238879,-187.72784141,0.00010476,2]
[335187324,1723954238888,-150.0,0.00010479,2]
[335187325,1723954238898,-500.0,0.00010481,2]
[335187326,1723954238907,-150.0,0.00010483,2]
[335187327,1723954238916,-187.72784141,0.00010487,2]
[335187328,1723954238926,-150.0,0.00010492,2]
[335187329,1723954238935,-187.72784141,0.00010498,2]
[335187330,1723954238945,-150.0,0.000105,2]
[335187331,1723954238955,-355.85,0.000105,2]
[335187332,1723954238964,-93.72258364,0.000105,2]
[335187333,1723954238976,-741.77741636,0.000105,2]
[335187334,1723954238985,-150.0,0.000105,2]
[335187335,1723954238994,-150.0,0.000105,2]
[335187336,1723954239003,-421.13,0.000105,2]
[335187337,1723954239012,-842.37,0.000105,2]
[335187338,1723954239021,-150.0,0.000105,2]
[335187339,1723954239030,-418.65,0.000105,2]
[335187340,1723954239039,-531.34,0.000105,2]
[335187341,1723954239048,-150.0,0.000105,2]
[335187342,1723954239057,-151.42,0.000105,2]
[335187343,1723954239067,-150.0,0.000105,2]
[335187344,1723954239076,-301.05,0.000105,2]
[335187345,1723954239089,-531.34,0.000105,2]
[335187346,1723954239098,-150.0,0.000105,2]
[335187347,1723954239107,-835.92,0.000105,2]
[335187348,1723954239116,-503.35365302,0.000105,2]
[335187349,1723954239136,-27.53634698,0.000105,2]
[335187350,1723954239145,-421.09,0.000105,2]
[335187351,1723954239156,-150.0,0.000105,2]
[335187352,1723954239166,-150.0,0.00010506,2]
[335187353,1723954239176,-187.72784141,0.00010509,2]
[335187354,1723954239185,-661.22282736,0.00010513,2]
[335187355,1723954239195,-150.0,0.00010519,2]
[335187356,1723954239204,-187.72784141,0.0001052,2]
[335187357,1723954239214,-150.0,0.00010529,2]
[335187358,1723954239223,-187.72784141,0.00010531,2]
[335187359,1723954239232,-187.72784141,0.00010542,2]
[335187360,1723954239241,-150.0,0.00010547,2]
[335187361,1723954239250,-150.0,0.00010547,2]
[335187362,1723954239260,-150.0,0.00010551,2]
[335187363,1723954239269,-187.72784141,0.00010554,2]
[335187364,1723954239278,-150.0,0.00010564,2]
[335187365,1723954239288,-187.72784141,0.00010565,2]
[335187366,1723954239297,-155.0,0.00010566,2]
[335187367,1723954239307,-150.0,0.00010574,2]
[335187368,1723954239317,-150.0,0.00010574,2]
[335187369,1723954239327,-187.72784141,0.00010576,2]
[335187370,1723954239336,-187.72784141,0.00010587,2]
[335187371,1723954239345,-187.72784141,0.00010598,2]
[335187372,1723954239354,-150.0,0.00010602,2]
[335187373,1723954239364,-187.72784141,0.00010609,2]
[335187374,1723954239373,-187.72784141,0.0001062,2]
[335187375,1723954239382,-150.0,0.0001062,2]
[335187376,1723954239391,-150.0,0.00010629,2]
[335187377,1723954239400,-187.72784141,0.00010631,2]
[335187378,1723954239410,-187.72784141,0.00010642,2]
[335187379,1723954239419,-150.0,0.00010648,2]
[335187380,1723954239430,-187.72784141,0.00010653,2]
[335187381,1723954239440,-150.0,0.00010657,2]
[335187382,1723954239450,-187.72784141,0.00010664,2]
[335187383,1723954239460,-187.72784141,0.00010676,2]
[335187384,1723954239469,-150.0,0.00010684,2]
[335187385,1723954239480,-500.0,0.00010686,2]
[335187386,1723954239490,-187.72784141,0.00010687,2]
[335187387,1723954239499,-187.72784141,0.00010698,2]
[335187388,1723954239509,-2387.09421634,0.00010699,2]
[335187389,1723954239518,-187.72784141,0.00010709,2]
[335187390,1723954239527,-150.0,0.00010712,2]
[335187391,1723954239536,-187.72784141,0.0001072,2]
[335187392,1723954239545,-187.72784141,0.00010731,2]
[335187393,1723954239555,-150.0,0.00010733,2]
[335187394,1723954239563,-150.0,0.00010739,2]
[335187395,1723954239573,-187.72784141,0.00010742,2]
[335187396,1723954239582,-187.72784141,0.00010753,2]
[335187397,1723954239591,-215.89361964,0.00010761,2]
[335187398,1723954239600,-187.72784141,0.00010764,2]
[335187399,1723954239609,-150.0,0.00010767,2]
[335187400,1723954239618,-150.0,0.00010767,2]
[335187401,1723954239627,-150.0,0.00010769,2]
[335187402,1723954239636,-187.72784141,0.00010775,2]
[335187403,1723954239644,-187.72784141,0.00010787,2]
[335187404,1723954239654,-150.0,0.00010794,2]
[335187405,1723954239663,-187.72784141,0.00010798,2]
[335187406,1723954239673,-187.72784141,0.00010809,2]
[335187407,1723954239682,-150.0,0.00010817,2]
[335187408,1723954239693,-150.0,0.00010817,2]
[335187409,1723954239703,-187.72784141,0.0001082,2]
[335187410,1723954239712,-150.0,0.00010822,2]
[335187411,1723954239722,-187.72784141,0.00010831,2]
[335187412,1723954239732,-644.31993648,0.00010835,2]
[335187413,1723954239742,-150.0,0.00010839,2]
[335187414,1723954239751,-187.72784141,0.00010842,2]
[335187415,1723954239761,-150.0,0.00010849,2]
[335187416,1723954239770,-150.0,0.00010849,2]
[335187417,1723954239780,-524.19262499,0.00010852,2]
[335187418,1723954239789,-187.72784141,0.00010853,2]
[335187419,1723954239799,-150.6336408,0.00010862,2]
[335187420,1723954239808,-187.72784141,0.00010864,2]
[335187421,1723954239818,-150.0,0.00010867,2]
[335187422,1723954239827,-150.0,0.00010871,2]
[335187423,1723954239836,-187.72784141,0.00010875,2]
[335187424,1723954239846,-150.0,0.00010876,2]
[335187425,1723954239855,-187.72784141,0.00010886,2]
[335187426,1723954239864,-150.0,0.00010888,2]
[335187427,1723954239874,-3000.0,0.0001089,2]
[335187428,1723954239883,-415.8689645,0.0001089,2]
[335187429,1723954239893,-211.10292658,0.0001089,2]
[335187430,1723954239902,-155.16328719,0.0001089,2]
[335187431,1723954239912,-187.72784141,0.00010898,2]
[335187432,1723954239921,-155.0,0.00010899,2]
[335187433,1723954239931,-155.0,0.00010899,2]
[335187434,1723954239940,-874.5562,0.000109,2]
[335187435,1723954239951,-564.776,0.000109,2]
[335187436,1723954239960,-341.14896864,0.000109,2]
[335187437,1723954239969,-214.62366215,0.00010901,2]
[335187438,1723954239979,-150.0,0.00010902,2]
[335187439,1723954239988,-150.0,0.00010904,2]
[335187440,1723954239997,-150.0,0.00010907,2]
[335187441,1723954240007,-187.72784141,0.00010909,2]
[335187442,1723954240016,-187.72784141,0.0001092,2]
[335187443,1723954240027,-187.72784141,0.00010931,2]
[335187444,1723954240036,-150.0,0.00010931,2]
[335187445,1723954240046,-187.72784141,0.00010942,2]
[335187446,1723954240055,-526.83395276,0.00010949,2]
[335187447,1723954240064,-187.72784141,0.00010953,2]
[335187448,1723954240073,-150.0,0.00010959,2]
[335187449,1723954240086,-250.0,0.00010959,2]
[335187450,1723954240095,-500.0,0.0001096,2]
[335187451,1723954240105,-500.0,0.0001096,2]
[335187452,1723954240114,-187.72784141,0.00010964,2]
[335187453,1723954240124,-150.0,0.00010965,2]
[335187454,1723954240133,-200.23338276,0.00010973,2]
[335187455,1723954240143,-200.03671116,0.00010973,2]
[335187456,1723954240152,-200.0,0.00010973,2]
[335187457,1723954240162,-187.72784141,0.00010975,2]
[335187458,1723954240171,-500.0,0.00010976,2]
[335187459,1723954240180,-187.72784141,0.00010986,2]
[335187460,1723954240190,-150.0,0.00010986,2]
[335187461,1723954240201,-150.0,0.00010986,2]
[335187462,1723954240211,-150.0,0.00010986,2]
[335187463,1723954240220,-150.0,0.00010986,2]
[335187464,1723954240229,-566.912,0.00010988,2]
[335187465,1723954240238,-1179.364,0.00010988,2]
[335187466,1723954240248,-926.341,0.00010988,2]
[335187467,1723954240258,-610.968,0.00010988,2]
[335187468,1723954240268,-810.0,0.00010988,2]
[335187469,1723954240278,-446.0,0.00010988,2]
[335187470,1723954240287,-557.344,0.00010988,2]
[335187471,1723954240297,-1909.05,0.00010988,2]
[335187472,1723954240307,-545.81,0.00010988,2]
[335187473,1723954240316,-247.0,0.00010988,2]
[335187474,1723954240326,-1479.462,0.00010988,2]
[335187475,1723954240336,-1176.887,0.00010988,2]
[335187476,1723954240345,-260.359,0.00010988,2]
[335187477,1723954240355,-547.10490971,0.00010989,2]
[335187478,1723954240365,-150.0,0.00010991,2]
[335187479,1723954240374,-500.0,0.00010993,2]
[335187480,1723954240383,-4634.9253574,0.00010998,2]
[335187481,1723954240393,-12382.0602954,0.00010998,2]
[335187482,1723954240403,-6357.0677203,0.00010998,2]
[335187483,1723954240412,-10398.5550986,0.00010998,2]
[335187484,1723954240422,-9792.5982502,0.00010998,2]
[335187485,1723954240431,-1109.96293385,0.00010999,3]
[335187486,1723954240441,-348.99877145,0.00010999,2]
[335187487,1723954240451,-340.70639905,0.00010999,2]
[335187488,1723954240461,-500.30700833,0.00010999,2]
[335187489,1723954240470,-547.0,0.00011,2]
[335187490,1723954240479,-275569.6535694,0.00011,2]
[335187491,1723954240489,-3475548.67455218,0.00011,2]
[335187492,1723954240502,-1420157.22886715,0.00011,2]
[335187493,1723954240513,-7310.72,0.00011,2]
[335187494,1723954240523,-5378.01616488,0.00011,2]
[335187495,1723954240534,-81047.39394063,0.00011,2]
[335187496,1723954240545,-1438.3213436,0.00011,2]
[335187497,1723954240644,-639.318,0.00011,2]
[335187498,1723954240661,-500.92930435,0.00011,2]
[335187499,1723954240821,-3030.92445365,0.00011,2]
[335187501,1723954240833,-16040.5,0.00011,2]
[335187502,1723954243356,-1308.00000413,0.00010566,2]
[335187503,1723954243368,-1079.09421221,0.00010566,2]
[335187504,1723954243377,-18148.89280573,0.00011,2]
[335187513,1723954244455,-2999.6587433,0.00011,2]
[335187514,1723954244467,-1240.38172753,0.00011,2]
[335187515,1723954246479,-835.92,0.000105,2]
[335187516,1723954246488,-150.0,0.000105,2]
[335187517,1723954246499,-8969.0914,0.00011,2]
[335187518,1723954268888,700.0,9.068e-05,2]
[335187519,1723954269320,600.0,9.068e-05,2]
[335187520,1723954269530,500.0,8.22e-05,2]
[335187521,1723954291580,500.0,8.22e-05,2]
[335187522,1723954318137,500.0,8.22e-05,2]
[335187523,1723954320168,500.0,9.59e-05,2]
[335187524,1723954336243,500.0,9.297e-05,2]
[335187525,1723954336762,500.0,9.456e-05,2]
[335187526,1723954337242,500.0,9.855e-05,2]
[335187527,1723954338063,500.0,9.94e-05,2]
[335187528,1723954341038,500.0,8.924e-05,2]
[335187529,1723954344249,504.50844191,8.613e-05,2]
[335187530,1723954344470,500.0,8.571e-05,2]
[335187531,1723954347439,600.0,8.588e-05,2]
[335187532,1723954347480,500.81295962,9.214e-05,2]
[335187533,1723954347950,600.0,8.909e-05,2]
[335187534,1723954348307,500.0,8.782e-05,2]
[335187535,1723954348426,600.0,9.136e-05,2]
[335187536,1723954348752,500.0,9.448e-05,2]
[335187537,1723954348920,600.0,9.222e-05,2]
[335187538,1723954349396,600.0,9.346e-05,2]
[335187539,1723954349901,600.0,9.457e-05,2]
[335187540,1723954350394,600.0,9.975e-05,2]
[335187541,1723954353361,500.0,8.69e-05,2]
[335187542,1723954353885,500.0,9.25e-05,2]
[335187543,1723954364941,1311.0864134,8.22e-05,2]
[335187544,1723954422394,1311.0864134,9.963e-05,2]
[335187548,1723954534178,468.8,8.219e-05,2]
[335187549,1723954541910,1311.0864134,9.963e-05,2]
[335187553,1723954571634,155.0,9.988e-05,2]
[335187554,1723954574469,453.0,9.962e-05,2]
[335187555,1723954585401,1311.0864134,9.962e-05,2]
[335187556,1723954595324,155.17853723,9.962e-05,2]
[335187557,1723954596118,800.0,8.22e-05,2]
[335187558,1723954596382,500.0,8.22e-05,2]
[335187559,1723954596674,900.0,8.22e-05,2]
[335187560,1723954597705,800.0,9.59e-05,2]
[335187561,1723954598313,900.0,9.59e-05,2]
[335187562,1723954598473,400.0,9.945e-05,2]
[335187564,1723954615325,155.0,9.988e-05,2]
[335187565,1723954634491,500.0,8.22e-05,2]
[335187566,1723954635814,500.0,9.473e-05,2]
[335187567,1723954636298,500.0,9.917e-05,2]
[335187568,1723954636517,500.0,9.59e-05,2]
[335187569,1723954639517,500.0,8.539e-05,2]
[335187570,1723954642698,500.0,8.22e-05,2]
[335187571,1723954649308,500.0,8.525e-05,2]
[335187572,1723954649463,500.0,8.945e-05,2]
[335187573,1723954649577,500.0,9.838e-05,2]
[335187574,1723954649827,500.0,8.877e-05,2]
[335187575,1723954650305,500.0,9.282e-05,2]
[335187576,1723954650807,500.0,9.6e-05,2]
[335187577,1723954652271,500.0,9.957e-05,2]
[335187579,1723954682808,216.56,9.988e-05,2]
[335187580,1723954728910,1311.0864134,9.988e-05,2]
[335187581,1723954749833,10468.1,9.959e-05,2]
[335187584,1723954816916,1311.0864134,9.959e-05,2]
[335187588,1723954894915,1311.0864134,9.959e-05,2]
[335187589,1723954936052,500.0,8.641e-05,2]
[335187590,1723954936213,500.0,8.548e-05,2]
[335187591,1723954936713,500.0,9.418e-05,2]
[335187592,1723954937281,500.0,9.703e-05,2]
[335187593,1723954944635,500.0,9.174e-05,2]
[335187594,1723954945596,500.0,8.859e-05,2]
[335187595,1723954946156,500.0,9.136e-05,2]
[335187596,1723954946424,155.10941378,9.647e-05,2]
[335187597,1723954946538,501.95316321,9.089e-05,2]
[335187598,1723954946645,97.47609404,9.278e-05,2]
[335187599,1723954946669,402.52390596,9.278e-05,2]
[335187600,1723954947128,500.0,9.602e-05,2]
[335187601,1723954947608,500.0,9.979e-05,2]
[335187602,1723954948475,500.0,8.971e-05,2]
[335187603,1723954948700,500.0,8.93e-05,2]
[335187604,1723954948821,500.0,9.211e-05,2]
[335187605,1723955009426,1311.0864134,9.211e-05,2]
[335187606,1723955024423,1311.0864134,9.211e-05,2]
[335187607,1723955106359,680.0,9.847e-05,2]
[335187608,1723955110794,150.0,9.888e-05,2]
[335187609,1723955111139,150.0,9.952e-05,2]
[335187610,1723955123854,150.0,9.888e-05,2]
[335187611,1723955135810,202.98,9.735e-05,2]
[335187612,1723955140437,1311.0864134,9.211e-05,2]
[335187613,1723955145203,547.10490971,9.988e-05,2]
[335187614,1723955150502,257.29,9.727e-05,2]
[335187617,1723955209622,2230.409505,9.95e-05,2]
[335187618,1723955215475,1188.45050348,9.727e-05,2]
[335187630,1723955236545,500.0,8.653e-05,2]
[335187631,1723955240375,445.36,8.219e-05,2]
[335187635,1723955246392,155.15376198,9.619e-05,2]
[335187636,1723955249406,658.95822794,8.921e-05,2]
[335187637,1723955250127,500.0,8.492e-05,2]
[335187638,1723955250636,500.0,8.503e-05,2]
[335187639,1723955251109,500.0,9.058e-05,2]
[335187640,1723955251608,500.0,9.728e-05,2]
[335187641,1723955253060,185.31584435,9.04e-05,2]
[335187647,1723955274471,26162.30956378,9.988e-05,2]
[335187648,1723955302193,893.1069524,9.988e-05,2]
[335187650,1723955345584,2161.55596901,9.982e-05,2]
[335187660,1723955403108,298.64010758,9.988e-05,2]
[335187661,1723955430359,820.74136618,9.988e-05,2]
[335187671,1723955437622,-550.0,0.0001,2]
[335187672,1723955437632,-150.0,0.00010017,2]
[335187673,1723955437642,-500.0,0.00010081,2]
[335187674,1723955437651,-150.0,0.00010082,2]
[335187675,1723955437662,-150.0,0.00010146,2]
[335187676,1723955437672,-150.0,0.00010211,2]
[335187677,1723955437683,-150.0,0.00010275,2]
[335187678,1723955437692,-150.0,0.0001034,2]
[335187679,1723955437703,-150.0,0.00010405,2]
[335187680,1723955437712,-150.0,0.00010437,2]
[335187681,1723955437723,-500.0,0.00010463,2]
[335187682,1723955437732,-445.36,0.00010464,2]
[335187684,1723955437742,-150.0,0.00010469,2]
[335187686,1723955437751,-316.86944542,0.00010471,2]
[335187688,1723955437761,-523.08333089,0.00010471,2]
[335187690,1723955437771,-300.0,0.00010479,2]
[335187692,1723955437781,-19977.87330502,0.0001048,2]
[335187694,1723955437791,-150.0,0.00010499,2]
[335187696,1723955437800,-834.66,0.000105,2]
[335187698,1723955437809,-150.0,0.000105,2]
[335187699,1723955437819,-426.41,0.000105,2]
[335187701,1723955437829,-356.76,0.000105,2]
[335187703,1723955437838,-326.68,0.000105,2]
[335187705,1723955437847,-220.18,0.000105,2]
[335187707,1723955437857,-150.0,0.000105,2]
[335187709,1723955437866,-356.76,0.000105,2]
[335187711,1723955437876,-150.0,0.000105,2]
[335187713,1723955437885,-356.76,0.000105,2]
[335187715,1723955437895,-150.0,0.00010534,2]
[335187717,1723955437904,-308.39480603,0.00010566,2]
[335187719,1723955437914,-150.0,0.00010599,2]
[335187721,1723955437923,-150.0,0.00010663,2]
[335187723,1723955437932,-150.0,0.00010728,2]
[335187725,1723955437942,-150.0,0.00010776,2]
[335187727,1723955437952,-150.0,0.00010788,2]
[335187729,1723955437961,-150.0,0.00010792,2]
[335187731,1723955437970,-150.0,0.00010795,2]
[335187733,1723955437980,-113268.860206,0.000108,2]
[335187735,1723955437989,-243.22143177,0.00010835,2]
[335187737,1723955437999,-150.0,0.00010857,2]
[335187739,1723955438008,-150.0,0.00010859,2]
[335187741,1723955438019,-155.0,0.00010862,2]
[335187743,1723955438029,-211.00519378,0.00010888,2]
[335187745,1723955438038,-545.43319,0.0001089,2]
[335187747,1723955438047,-532.36755097,0.0001089,2]
[335187749,1723955438057,-216.754,0.00010898,2]
[335187751,1723955438066,-150.0,0.00010922,2]
[335187753,1723955438076,-150.0,0.00010942,2]
[335187755,1723955438086,-257.29,0.00010942,2]
[335187757,1723955438095,-250.0,0.00010959,2]
[335187759,1723955438105,-500.0,0.0001096,2]
[335187761,1723955438114,-500.0,0.0001096,2]
[335187763,1723955438124,-800.0,0.0001096,2]
[335187765,1723955438133,-900.0,0.0001096,2]
[335187767,1723955438142,-200.0,0.00010973,2]
[335187769,1723955438151,-256.06448312,0.00010986,2]
[335187771,1723955438161,-150.0,0.00010986,2]
[335187773,1723955438170,-547.78273589,0.00010989,2]
[335187775,1723955438180,-164.09,0.0001099,2]
[335187777,1723955438190,-164.09,0.0001099,2]
[335187779,1723955438199,-164.09,0.0001099,2]
[335187781,1723955438209,-164.09,0.0001099,2]
[335187783,1723955438218,-164.09,0.0001099,2]
[335187784,1723955438228,-164.09,0.0001099,2]
[335187785,1723955438238,-164.09,0.0001099,2]
[335187786,1723955438248,-164.09,0.0001099,2]
[335187787,1723955438257,-164.09,0.0001099,2]
[335187788,1723955438266,-164.09,0.0001099,2]
[335187789,1723955438276,-164.09,0.0001099,2]
[335187790,1723955438285,-164.09,0.0001099,2]
[335187791,1723955438295,-164.09,0.0001099,2]
[335187792,1723955438304,-164.09,0.0001099,2]
[335187793,1723955438314,-164.09,0.0001099,2]
[335187794,1723955438325,-164.09,0.0001099,2]
[335187795,1723955438336,-164.09,0.0001099,2]
[335187796,1723955438346,-164.09,0.0001099,2]
[335187797,1723955438355,-164.09,0.0001099,2]
[335187798,1723955438365,-164.09,0.0001099,2]
[335187799,1723955438375,-164.09,0.0001099,2]
[335187800,1723955438386,-164.09,0.0001099,2]
[335187801,1723955438396,-164.09,0.0001099,2]
[335187802,1723955438406,-164.09,0.0001099,2]
[335187803,1723955438415,-164.09,0.0001099,2]
[335187804,1723955438425,-164.09,0.0001099,2]
[335187805,1723955438435,-164.09,0.0001099,2]
[335187806,1723955438445,-164.09,0.0001099,2]
[335187807,1723955438455,-164.09,0.0001099,2]
[335187808,1723955438464,-164.09,0.0001099,2]
[335187809,1723955438474,-164.09,0.0001099,2]
[335187810,1723955438483,-164.09,0.0001099,2]
[335187811,1723955438493,-164.09,0.0001099,2]
[335187812,1723955438502,-164.09,0.0001099,2]
[335187813,1723955438511,-164.09,0.0001099,2]
[335187814,1723955438521,-164.09,0.0001099,2]
[335187815,1723955438530,-164.09,0.0001099,2]
[335187816,1723955438540,-164.09,0.0001099,2]
[335187817,1723955438549,-164.09,0.0001099,2]
[335187818,1723955438559,-164.09,0.0001099,2]
[335187819,1723955438568,-164.09,0.0001099,2]
[335187820,1723955438578,-164.09,0.0001099,2]
[335187821,1723955438590,-164.09,0.0001099,2]
[335187822,1723955438599,-164.09,0.0001099,2]
[335187823,1723955438608,-164.09,0.0001099,2]
[335187824,1723955438618,-164.09,0.0001099,2]
[335187825,1723955438627,-164.09,0.0001099,2]
[335187826,1723955438638,-164.09,0.0001099,2]
[335187827,1723955438647,-164.09,0.0001099,2]
[335187828,1723955438656,-164.09,0.0001099,2]
[335187829,1723955438666,-164.09,0.0001099,2]
[335187830,1723955438675,-164.09,0.0001099,2]
[335187831,1723955438684,-164.09,0.0001099,2]
[335187832,1723955438693,-164.09,0.0001099,2]
[335187833,1723955438703,-164.09,0.0001099,2]
[335187834,1723955438712,-164.09,0.0001099,2]
[335187835,1723955438721,-164.09,0.0001099,2]
[335187836,1723955438731,-164.09,0.0001099,2]
[335187837,1723955438740,-164.09,0.0001099,2]
[335187838,1723955438749,-164.09,0.0001099,2]
[335187839,1723955438758,-4324.10720347,0.00010993,2]
[335187840,1723955438767,-3559.2507193,0.00010998,2]
[335187841,1723955438776,-4746.287156,0.00010998,2]
[335187842,1723955438786,-7327.4400971,0.00010998,2]
[335187843,1723955438795,-1896.0,0.00010999,2]
[335187844,1723955438804,-247.0,0.00010999,2]
[335187845,1723955438813,-1171.0,0.00010999,2]
[335187846,1723955438822,-348.26413265,0.00010999,2]
[335187847,1723955438831,-137784.8267847,0.00011,2]
[335187848,1723955438840,-60000.0,0.00011,2]
[335187849,1723955438849,-124840.50119262,0.00011,2]
[335187850,1723955439561,-249.622,0.00010898,2]
[335187851,1723955439570,-643.986748,0.00011,2]
[335187854,1723955445656,-500.0,0.00010999,2]
[335187855,1723955445666,-363.5219145,0.00010999,2]
[335187856,1723955445677,-13493.17175084,0.00011,2]
[335187857,1723955445688,-3515.15708652,0.00011,2]
[335187858,1723955446428,-13729.87590856,0.00011,2]
[335187859,1723955446440,-696.48931307,0.00011,2]
[335187860,1723955446454,-815.46707181,0.00011,2]
[335187861,1723955489799,500.0,8.22e-05,2]
[335187862,1723955498905,500.0,8.22e-05,2]
[335187865,1723955518432,700.0,8.22e-05,2]
[335187866,1723955518550,800.0,8.22e-05,2]
[335187867,1723955520002,700.0,9.59e-05,2]
[335187868,1723955520126,800.0,9.59e-05,2]
[335187869,1723955535522,500.0,9.187e-05,2]
[335187870,1723955536040,500.0,9.013e-05,2]
[335187871,1723955542214,500.0,8.583e-05,2]
[335187872,1723955545795,500.0,9.572e-05,2]
[335187873,1723955548398,931.52326073,9.033e-05,2]
[335187874,1723955551618,500.0,8.22e-05,2]
[335187875,1723955553551,500.0,9.59e-05,2]
[335187876,1723955590765,500.0,8.22e-05,2]
[335187877,1723955593122,500.0,8.22e-05,2]
[335187878,1723955660038,193.35,9.976e-05,2]
[335187879,1723955669366,250.0,9.987e-05,2]
[335187880,1723955691060,-626.52,0.00013,9]
[335187881,1723955742469,202.31,9.979e-05,2]
[335187882,1723955783265,2437.46,9.975e-05,2]
[335187883,1723955815659,174.22,9.955e-05,2]
[335187886,1723955835918,500.0,8.332e-05,2]
[335187887,1723955836385,500.0,9.733e-05,2]
[335187889,1723955839356,456.05,8.219e-05,2]
[335187890,1723955846961,500.0,8.433e-05,2]
[335187891,1723955847483,501.32573439,9.548e-05,2]
[335187892,1723955853090,500.0,7.934e-05,2]
[335187893,1723955853579,500.0,8.913e-05,2]
[335187894,1723955854140,500.0,9.545e-05,2]
[335187895,1723955854637,500.0,9.789e-05,2]
[335187896,1723955895068,3000.22,9.923e-05,2]
[335187900,1723956086987,500.0,9.888e-05,2]
[335187901,1723956118957,193.35,9.886e-05,2]
[335187902,1723956125240,714.94,9.911e-05,2]
[335187903,1723956128684,19026.0,9.944e-05,2]
[335187904,1723956136024,500.0,8.48e-05,2]
[335187905,1723956136225,500.0,8.048e-05,2]
[335187906,1723956136783,500.0,8.932e-05,2]
[335187907,1723956137252,500.0,9.716e-05,2]
[335187908,1723956152387,830.73471191,8.26e-05,2]
[335187909,1723956153183,500.0,7.824e-05,2]
[335187910,1723956153655,500.0,8.141e-05,2]
[335187911,1723956154148,500.0,8.741e-05,2]
[335187912,1723956154647,500.0,9.472e-05,2]
[335187913,1723956207419,202.33,9.873e-05,2]
[335187914,1723956218511,1000.0,9.89e-05,2]
[335187915,1723956372610,433.24,8.219e-05,2]
[335187916,1723956387533,26162.30956378,9.988e-05,2]
[335187919,1723956435414,500.0,8.495e-05,2]
[335187922,1723956448750,500.0,9.685e-05,2]
[335187934,1723956631602,-448.53,0.0001,2]